bitfinex/quotes_SOLUSD_20251206
["timestamp","ask_amount","ask_price","bid_price","bid_amount"]
[1764984666197,8.13887862,133.71,133.67,20.40341915]
[1764984666403,0.66,133.7,133.67,21.10341915]
[1764984669807,8.19851642,133.72,133.69,4.70250164]
[1764984669986,0.72,133.71,133.69,4.70250164]
[1764984670404,0.72,133.71,133.69,5.37250164]
[1764984671490,0.72,133.71,133.69,4.70250164]
[1764984672094,0.72,133.71,133.69,0.67]
[1764984672305,0.72,133.71,133.69,4.70250164]
[1764984672487,12.9016794,133.71,133.67,4.70250164]
[1764984672885,0.72,133.7,133.67,4.70250164]
[1764984673613,12.90217408,133.7,133.66,4.70250164]
[1764984674211,0.72,133.69,133.66,4.70250164]
[1764984674798,12.90251083,133.69,133.64,7.48266929]
[1764984674999,4.70250164,133.68,133.63,12.185832]
[1764984675207,5.42250164,133.68,133.63,12.185832]
[1764984675384,0.72,133.67,133.63,12.185832]
[1764984676200,0.72,133.67,133.64,7.48268301]
[1764984677418,0.72,133.67,133.63,12.85566285]
[1764984677622,0.72,133.67,133.63,8.15316121]
[1764984678003,0.72,133.67,133.64,4.70250164]
[1764984679016,0.72,133.67,133.64,12.18524752]
[1764984684213,4.70250164,133.65,133.6,0.67]
[1764984684528,31.60645729,133.67,133.62,4.70250164]
[1764984684716,0.72,133.66,133.63,5.37250164]
[1764984685530,0.72,133.66,133.63,12.85581164]
[1764984686236,8.20168487,133.66,133.63,5.37250164]
[1764984687503,0.72,133.65,133.63,0.67]
[1764984687929,0.72,133.65,133.63,5.37250164]
[1764984688109,7.48124203,133.67,133.63,12.18578589]
[1764984688309,0.72,133.66,133.64,0.67]
[1764984688820,0.72,133.66,133.63,12.18578589]
[1764984689025,0.72,133.66,133.63,12.85578589]
[1764984690212,0.72,133.66,133.63,12.18578589]
[1764984690434,0.72,133.66,133.64,0.67]
[1764984691848,0.72,133.69,133.65,4.70250164]
[1764984692019,0.72,133.69,133.66,4.70250164]
[1764984692218,0.72,133.69,133.66,5.37250164]
[1764984692542,8.1990386,133.71,133.67,5.37250164]
[1764984692926,0.72,133.7,133.67,5.37250164]
[1764984693231,0.72,133.7,133.67,4.70250164]
[1764984693426,0.72,133.7,133.67,5.37250164]
[1764984693626,0.72,133.7,133.67,12.85359866]
[1764984694554,12.90245177,133.7,133.65,7.48196818]
[1764984694849,21.01136564,133.66,133.59,0.67]
[1764984695182,4.70250164,133.63,133.62,12.92250164]
[1764984695525,5.42250164,133.63,133.62,12.92250164]
[1764984695861,5.42250164,133.63,133.59,0.67]
[1764984696020,0.72,133.62,133.59,0.67]
[1764984696660,0.72,133.62,133.6,7.48493045]
[1764984697121,0.72,133.62,133.58,35.22390484]
[1764984697447,5.42250164,133.62,133.59,8.15559023]
[1764984697746,0.72,133.61,133.59,7.48559023]
[1764984699839,5.41250164,133.62,133.59,8.20559023]
[1764984700049,0.71,133.61,133.59,7.48559023]
[1764984700829,0.71,133.63,133.6,0.72]
[1764984701831,0.71,133.63,133.6,8.20501312]
[1764984703544,0.71,133.63,133.6,7.48501312]
[1764984703750,0.71,133.63,133.6,8.20501312]
[1764984703934,123.40478997,133.65,133.61,0.72]
[1764984704143,0.71,133.63,133.6,12.18751476]
[1764984704336,0.71,133.63,133.6,12.90751476]
[1764984705661,0.71,133.64,133.61,0.72]
[1764984706037,0.71,133.64,133.6,12.90751476]
[1764984708335,0.71,133.64,133.6,11.21686524]
[1764984709148,0.71,133.64,133.61,0.72]
[1764984709555,0.71,133.64,133.61,3.73185212]
[1764984709851,8.19283612,133.64,133.61,3.01185212]
[1764984710237,0.71,133.63,133.61,3.01185212]
[1764984712058,0.71,133.63,133.6,11.21686524]
[1764984712743,0.71,133.63,133.6,3.73185212]
[1764984714363,11.2057097,133.63,133.58,8.39604819]
[1764984714567,11.2057097,133.63,133.58,11.40790031]
[1764984714766,0.69,133.62,133.58,11.40790031]
[1764984715150,3.01185212,133.6,133.58,0.2]
[1764984715463,8.91,133.62,133.58,0.2]
[1764984715464,3.01185212,133.59,133.58,0.2]
[1764984715840,11.94185212,133.59,133.58,0.2]
[1764984716346,0.69,133.59,133.58,0.2]
[1764984716545,0.69,133.6,133.58,0.2]
[1764984717870,8.17518489,133.6,133.58,0.2]
[1764984718369,0.69,133.59,133.58,0.2]
[1764984724466,8.17559023,133.59,133.58,0.2]
[1764984724668,11.18744235,133.59,133.58,0.2]
[1764984726261,19.42744235,133.59,133.58,0.2]
[1764984727976,16.41559023,133.59,133.58,0.2]
[1764984732569,19.42744235,133.59,133.58,0.2]
[1764984732758,28.23738727,133.59,133.58,0.2]
[1764984732959,44.54625127,133.59,133.58,0.2]
[1764984744294,41.53439915,133.59,133.58,0.2]
[1764984744695,44.54625127,133.59,133.58,0.2]
[1764984745388,41.53439915,133.59,133.58,0.2]
[1764984745895,44.54625127,133.59,133.58,0.2]
[1764984746191,32.03445423,133.59,133.58,0.2]
[1764984746392,35.76630635,133.59,133.58,0.2]
[1764984757627,44.57625127,133.59,133.58,0.2]
[1764984758097,47.57486441,133.59,133.58,0.2]
[1764984760421,44.56301229,133.59,133.58,0.2]
[1764984760641,7.48559023,133.59,133.58,0.89]
[1764984762311,15.70522597,133.6,133.58,0.89]
[1764984762627,15.70522597,133.6,133.59,0.69]
[1764984763143,15.70522597,133.6,133.58,0.89]
[1764984766092,15.70522597,133.6,133.58,0.2]
[1764984766093,106.68185212,133.59,133.58,0.2]
[1764984766298,131.80066104,133.59,133.58,0.2]
[1764984766727,3.01185212,133.55,133.54,0.2]
[1764984767301,3.68185212,133.55,133.54,0.2]
[1764984768230,11.16968439,133.55,133.54,0.2]
[1764984769431,19.97962931,133.55,133.54,0.2]
[1764984770520,21.68242324,133.55,133.54,0.2]
[1764984772614,16.96777719,133.55,133.54,0.2]
[1764984772799,21.68242324,133.55,133.54,0.2]
[1764984773929,24.68193581,133.55,133.54,0.2]
[1764984776026,24.01193581,133.55,133.54,0.2]
[1764984776234,12.20247832,133.55,133.54,0.2]
[1764984776913,12.92247832,133.55,133.54,0.2]
[1764984777933,17.01777719,133.55,133.54,0.2]
[1764984778134,21.73242324,133.55,133.54,0.2]
[1764984778435,24.73193581,133.55,133.54,0.2]
[1764984780837,20.01728976,133.55,133.54,0.2]
[1764984781035,7.48783227,133.55,133.54,0.85]
[1764984781340,12.20247832,133.55,133.54,0.2]
[1764984781930,20.44247832,133.55,133.54,0.2]
[1764984782135,20.44247832,133.55,133.54,0.85]
[1764984782639,20.44247832,133.55,133.54,0.2]
[1764984782828,15.72783227,133.55,133.54,0.2]
[1764984783028,15.72783227,133.55,133.54,0.85]
[1764984783844,15.72783227,133.55,133.54,0.2]
[1764984784440,20.44247832,133.55,133.54,0.2]
[1764984784739,7.48783227,133.55,133.54,0.85]
[1764984784934,28.51085911,133.56,133.54,0.85]
[1764984785139,28.51085911,133.56,133.55,0.65]
[1764984785820,23.79621306,133.56,133.55,0.65]
[1764984786044,16.308864,133.56,133.55,0.65]
[1764984786338,28.51078168,133.56,133.54,0.85]
[1764984786921,28.51078168,133.56,133.54,0.2]
[1764984787132,23.79613563,133.56,133.55,0.65]
[1764984787731,7.48727163,133.56,133.55,0.65]
[1764984793758,20.4415679,133.57,133.55,0.65]
[1764984793936,21.1415679,133.57,133.55,0.67]
[1764984794136,4.71464605,133.56,133.54,0.87]
[1764984794438,7.48692185,133.57,133.54,0.87]
[1764984794643,103.0,133.59,133.56,4.71464605]
[1764984795035,110.48580715,133.59,133.57,0.67]
[1764984795758,7.48580715,133.59,133.57,0.67]
[1764984795959,8.18580715,133.59,133.56,4.71464605]
[1764984796141,0.7,133.58,133.56,4.71464605]
[1764984796338,16.42580715,133.59,133.56,0.67]
[1764984796660,5.41464605,133.58,133.54,0.2]
[1764984796838,8.24,133.57,133.55,0.67]
[1764984797659,15.72674423,133.57,133.55,0.67]
[1764984799862,8.24,133.57,133.55,0.67]
[1764984805463,15.72671398,133.57,133.55,0.67]
[1764984810265,15.72671398,133.57,133.54,0.2]
[1764984810461,0.7,133.56,133.54,0.87]
[1764984810765,21.14136003,133.57,133.54,0.87]
[1764984810966,16.42671398,133.57,133.55,0.67]
[1764984811774,21.14136003,133.57,133.55,0.67]
[1764984812266,8.24,133.57,133.55,0.67]
[1764984812468,111.18631481,133.58,133.55,0.67]
[1764984812772,8.22,133.57,133.55,0.67]
[1764984814649,8.22,133.57,133.55,5.38464605]
[1764984814963,103.0,133.58,133.56,0.67]
[1764984815158,103.0,133.58,133.56,5.38464605]
[1764984815341,103.0,133.58,133.57,0.67]
[1764984820072,103.0,133.58,133.55,12.20242987]
[1764984820378,103.0,133.58,133.56,0.72]
[1764984820980,103.0,133.58,133.56,8.20724133]
[1764984821279,103.0,133.58,133.57,0.72]
[1764984822379,103.0,133.58,133.56,7.48724133]
[1764984822573,103.0,133.58,133.56,8.20724133]
[1764984827475,103.68,133.58,133.56,8.20724133]
[1764984828059,103.68,133.58,133.54,26.40813208]
[1764984828265,103.68,133.58,133.55,0.72]
[1764984829184,0.66,133.57,133.54,12.40253858]
[1764984829476,0.66,133.57,133.54,13.09253858]
[1764984829869,0.66,133.57,133.54,8.37789253]
[1764984831459,8.88,133.57,133.54,8.37789253]
[1764984833685,8.22,133.57,133.55,0.69]
[1764984834762,8.22,133.57,133.55,11.19266413]
[1764984834963,103.0,133.58,133.56,3.01505127]
[1764984835184,103.0,133.58,133.56,3.70505127]
[1764984835391,103.0,133.58,133.57,0.69]
[1764984837482,103.0,133.58,133.57,3.70505127]
[1764984837674,103.0,133.58,133.57,11.19176235]
[1764984838986,103.0,133.58,133.57,8.17671108]
[1764984839289,103.0,133.58,133.56,11.19218084]
[1764984839788,103.66,133.58,133.56,11.19218084]
[1764984840489,103.0,133.58,133.56,11.19218084]
[1764984840689,8.22,133.59,133.57,8.17668195]
[1764984842469,0.66,133.6,133.57,8.17668195]
[1764984842695,8.88,133.6,133.57,8.17668195]
[1764984843001,3.67505127,133.59,133.54,18.92019661]
[1764984843175,3.01505127,133.58,133.55,7.4877162]
[1764984843371,3.67505127,133.58,133.55,7.4877162]
[1764984843678,0.66,133.57,133.55,8.1777162]
[1764984845795,0.66,133.57,133.54,7.68817727]
[1764984845993,0.66,133.57,133.54,8.37817727]
[1764984846401,11.16183592,133.57,133.54,0.2]
[1764984846785,0.66,133.56,133.54,0.2]
[1764984847593,0.66,133.56,133.54,0.89]
[1764984847906,8.14731455,133.56,133.54,0.89]
[1764984852604,0.69,133.55,133.54,0.2]
[1764984852781,3.70505127,133.55,133.54,0.2]
[1764984854108,3.01505127,133.55,133.54,0.2]
[1764984855112,3.70505127,133.55,133.54,0.2]
[1764984859188,10.50236582,133.56,133.54,0.2]
[1764984859390,11.19236582,133.56,133.54,0.2]
[1764984859698,19.41236582,133.56,133.54,0.2]
[1764984862815,0.69,133.55,133.54,0.2]
[1764984867861,17.16180664,133.56,133.54,0.2]
[1764984867994,17.16180664,133.56,133.54,0.92]
[1764984868202,17.16180664,133.56,133.54,0.2]
[1764984869222,17.16180664,133.56,133.54,0.92]
[1764984869821,17.85180664,133.56,133.54,0.92]
[1764984870826,14.83675537,133.56,133.54,0.92]
[1764984871122,17.85180664,133.56,133.54,0.92]
[1764984871509,17.85180664,133.56,133.54,0.2]
[1764984871903,17.85180664,133.56,133.54,0.92]
[1764984872935,17.85180664,133.56,133.54,0.2]
[1764984878931,17.85180664,133.56,133.54,0.9]
[1764984880438,17.85180664,133.56,133.54,0.2]
[1764984880630,17.85180664,133.56,133.54,0.9]
[1764984882240,17.16180664,133.56,133.54,0.9]
[1764984883613,17.83180664,133.56,133.54,0.9]
[1764984886139,14.14675537,133.56,133.54,0.9]
[1764984887939,17.16180664,133.56,133.54,0.2]
[1764984888120,0.67,133.55,133.54,0.2]
[1764984888825,17.85180664,133.56,133.54,0.2]
[1764984889338,14.83675537,133.56,133.54,0.2]
[1764984889941,17.85180664,133.56,133.54,0.2]
[1764984890443,4.7127522,133.55,133.54,0.2]
[1764984891945,5.4027522,133.55,133.54,0.2]
[1764984892246,12.20058447,133.55,133.54,0.2]
[1764984895924,12.89058447,133.55,133.54,0.2]
[1764984896850,12.20058447,133.55,133.54,0.2]
[1764984898948,7.48783227,133.55,133.54,0.2]
[1764984901648,21.70052939,133.55,133.54,0.2]
[1764984902152,10.48711993,133.55,133.54,0.85]
[1764984902553,7.48783227,133.55,133.54,0.85]
[1764984902854,7.48783227,133.55,133.54,0.2]
[1764984903258,7.48783227,133.55,133.54,0.85]
[1764984903453,7.48783227,133.55,133.54,0.2]
[1764984903757,15.70783227,133.55,133.54,0.2]
[1764984905234,7.48783227,133.55,133.54,0.2]
[1764984905435,15.70783227,133.55,133.54,0.2]
[1764984913277,15.70783227,133.55,133.54,0.86]
[1764984914165,15.70783227,133.55,133.54,0.2]
[1764984914468,21.14058447,133.55,133.54,0.2]
[1764984914658,24.13964726,133.55,133.54,0.2]
[1764984917746,32.94959218,133.55,133.54,0.2]
[1764984937580,29.83156112,133.53,133.52,0.2]
[1764984937774,38.05156112,133.53,133.52,0.2]
[1764984937971,34.05880892,133.53,133.52,0.2]
[1764984938178,41.77129864,133.53,133.52,0.2]
[1764984939670,49.26025243,133.53,133.52,0.2]
[1764984942179,8.80994492,133.52,133.51,0.2]
[1764984942493,14.19269712,133.52,133.51,0.2]
[1764984943394,24.6823993,133.52,133.51,0.2]
[1764984944896,24.6823993,133.52,133.5,0.2]
[1764984945096,22.41269712,133.51,133.5,1e-08]
[1764984945598,25.41333475,133.51,133.5,1e-08]
[1764984946789,32.90341039,133.51,133.5,1e-08]
[1764984950091,32.23341039,133.51,133.49,1e-08]
[1764984950292,108.3727522,133.5,133.49,1e-08]
[1764984950900,111.37338983,133.5,133.49,1e-08]
[1764984951711,124.89608695,133.5,133.49,1e-08]
[1764984951894,132.38672365,133.5,133.49,1e-08]
[1764984952608,138.0649909,133.5,133.49,1e-08]
[1764984953616,35.0649909,133.5,133.49,1e-08]
[1764984962022,8.80994492,133.49,133.48,1e-08]
[1764984962209,8.80994492,133.49,133.47,0.2]
[1764984962210,25.11880892,133.46,133.45,0.2]
[1764984962398,36.37956325,133.46,133.45,0.2]
[1764984962711,40.04132678,133.46,133.45,0.2]
[1764984963504,47.53420854,133.46,133.45,0.2]
[1764984966602,46.87420854,133.46,133.45,0.2]
[1764984967599,47.53420854,133.46,133.45,0.2]
[1764984968603,46.87420854,133.46,133.45,0.2]
[1764984969102,47.53420854,133.46,133.45,0.2]
[1764984971525,35.61345421,133.46,133.45,0.92]
[1764984971726,46.87420854,133.46,133.45,0.92]
[1764984974626,38.63420854,133.46,133.45,0.92]
[1764984974832,46.87420854,133.46,133.45,0.92]
[1764984980132,38.63420854,133.46,133.45,0.92]
[1764984980338,46.87420854,133.46,133.45,0.92]
[1764984990338,43.85345421,133.46,133.45,0.92]
[1764984990549,46.87420854,133.46,133.45,0.92]
[1764984991722,47.53420854,133.46,133.45,0.2]
[1764984992132,47.53420854,133.46,133.44,0.2]
[1764984992133,8.80994492,133.45,133.44,0.2]
[1764984992341,11.83069925,133.45,133.44,0.92]
[1764984992542,27.56414248,133.45,133.44,0.2]
[1764984993233,30.56568076,133.45,133.44,0.2]
[1764984994950,30.56568076,133.45,133.44,0.92]
[1764984995155,133.56568076,133.45,133.44,0.92]
[1764984996560,130.56414248,133.45,133.44,0.92]
[1764984997976,130.56414248,133.45,133.44,0.2]
[1764984998122,25.11880892,133.42,133.41,0.2]
[1764984998325,36.37956325,133.42,133.41,0.2]
[1764984998934,36.37956325,133.42,133.41,1e-08]
[1764984998935,39.38177738,133.42,133.41,1e-08]
[1764984999129,8.80994492,133.41,133.4,1e-08]
[1764984999349,11.83069925,133.41,133.4,1e-08]
[1764984999768,14.83358953,133.41,133.4,1e-08]
[1764985000148,22.3292795,133.41,133.39,1e-08]
[1764985000352,8.80994492,133.39,133.36,0.2]
[1764985000670,11.26075433,133.38,133.36,0.2]
[1764985001870,10.51869239,133.37,133.36,0.2]
[1764985002758,10.51869239,133.37,133.36,0.91]
[1764985007174,3.02075433,133.37,133.36,0.91]
[1764985010981,8.24,133.38,133.36,0.91]
[1764985011184,8.24,133.38,133.37,0.71]
[1764985015575,12.96437368,133.38,133.37,0.71]
[1764985020404,20.46174959,133.38,133.36,0.2]
[1764985020564,5.43437368,133.37,133.36,0.2]
[1764985021101,4.72437368,133.37,133.36,0.2]
[1764985021768,12.22231174,133.37,133.36,0.91]
[1764985022475,20.46231174,133.37,133.36,0.91]
[1764985023298,15.73793806,133.37,133.36,0.91]
[1764985039911,15.73793806,133.37,133.36,0.2]
[1764985041481,7.49793806,133.37,133.36,0.2]
[1764985042688,15.73793806,133.37,133.36,0.2]
[1764985043188,15.73793806,133.37,133.36,0.88]
[1764985043394,7.49793806,133.37,133.36,0.88]
[1764985044906,25.18881764,133.38,133.36,0.88]
[1764985045112,12.96437368,133.38,133.37,0.68]
[1764985045792,12.22175408,133.38,133.36,0.88]
[1764985045999,21.15175408,133.38,133.36,0.88]
[1764985046805,12.91175408,133.38,133.36,0.88]
[1764985047107,21.15175408,133.38,133.36,0.88]
[1764985048112,12.22175408,133.38,133.36,0.88]
[1764985048293,20.46175408,133.38,133.36,0.88]
[1764985049816,21.15175408,133.38,133.36,0.88]
[1764985051017,16.4273804,133.38,133.36,0.88]
[1764985051518,15.7373804,133.38,133.37,0.68]
[1764985052021,15.7373804,133.38,133.36,0.88]
[1764985053024,16.4273804,133.38,133.36,0.2]
[1764985053223,21.15175408,133.38,133.36,0.88]
[1764985056517,20.46175408,133.38,133.36,0.88]
[1764985059413,15.7373804,133.38,133.36,0.88]
[1764985059623,16.4573804,133.38,133.36,0.88]
[1764985060014,4.72437368,133.43,133.37,0.66]
[1764985060195,4.72437368,133.42,133.37,5.38437368]
[1764985060622,5.44437368,133.42,133.38,0.66]
[1764985060806,4.72437368,133.41,133.38,0.66]
[1764985061823,12.22011154,133.41,133.38,0.66]
[1764985062926,7.49573786,133.41,133.38,0.66]
[1764985063931,7.49573786,133.41,133.38,5.38437368]
[1764985064422,8.24,133.42,133.38,12.88152515]
[1764985064596,8.24,133.42,133.39,0.66]
[1764985066126,8.24,133.42,133.39,8.15676512]
[1764985066328,8.24,133.42,133.4,0.66]
[1764985068320,23.80394011,133.43,133.4,0.66]
[1764985068526,24.51394011,133.43,133.4,0.66]
[1764985072118,8.24,133.45,133.4,12.88039715]
[1764985072319,16.44346359,133.45,133.42,4.72437368]
[1764985072832,16.44346359,133.45,133.43,0.67]
[1764985074535,8.24,133.45,133.43,0.67]
[1764985074712,12.92746715,133.46,133.43,0.67]
[1764985076506,11.22337274,133.46,133.43,0.67]
[1764985077234,8.20309347,133.46,133.43,0.67]
[1764985080334,114.22095516,133.5,133.45,3.02027927]
[1764985080533,122.46095516,133.5,133.45,3.02027927]
[1764985080830,0.71,133.49,133.46,0.67]
[1764985082304,103.0,133.5,133.47,3.02027927]
[1764985082718,103.0,133.5,133.48,0.67]
[1764985082916,0.71,133.51,133.48,0.67]
[1764985084116,11.22043649,133.51,133.48,0.67]
[1764985086815,8.20015722,133.51,133.48,0.67]
[1764985087119,11.22043649,133.51,133.48,0.67]
[1764985088409,10.51043649,133.51,133.48,0.67]
[1764985088614,0.71,133.5,133.48,0.67]
[1764985089242,3.68027927,133.51,133.48,0.67]
[1764985089445,3.02027927,133.5,133.48,0.67]
[1764985089650,3.68027927,133.5,133.48,0.67]
[1764985090032,0.66,133.5,133.48,0.67]
[1764985090533,35.71868291,133.52,133.48,8.16165297]
[1764985090724,24.548864,133.52,133.49,0.66]
[1764985090924,103.86,133.53,133.49,3.68027927]
[1764985091232,0.2,133.53,133.49,3.68027927]
[1764985091427,0.2,133.53,133.5,0.66]
[1764985091950,3.02027927,133.51,133.47,7.49165297]
[1764985092121,3.02027927,133.49,133.46,0.66]
[1764985092639,3.68027927,133.49,133.46,8.15268287]
[1764985093022,3.68027927,133.49,133.47,0.66]
[1764985093614,3.68027927,133.49,133.46,7.49268287]
[1764985093818,3.68027927,133.49,133.46,8.15268287]
[1764985095754,3.02027927,133.47,133.44,8.15380295]
[1764985095955,0.66,133.47,133.44,8.15380295]
[1764985096152,3.68027927,133.47,133.45,0.66]
[1764985097020,3.68027927,133.47,133.44,7.49380295]
[1764985097219,3.68027927,133.47,133.44,8.15380295]
[1764985097429,3.02027927,133.47,133.44,8.15380295]
[1764985097639,0.66,133.46,133.44,8.15380295]
[1764985098554,3.02027927,133.49,133.45,0.66]
[1764985098853,3.68027927,133.49,133.45,0.66]
[1764985100347,3.68027927,133.49,133.46,7.49288176]
[1764985100847,3.68027927,133.49,133.46,8.15288176]
[1764985103935,3.68027927,133.49,133.47,0.66]
[1764985104327,19.32914327,133.52,133.47,0.66]
[1764985104528,7.4898567,133.52,133.48,3.02027927]
[1764985104737,8.1498567,133.52,133.48,3.02027927]
[1764985104942,8.1498567,133.52,133.49,0.66]
[1764985107155,11.17013597,133.52,133.49,0.66]
[1764985107454,0.66,133.51,133.49,0.66]
[1764985109159,10.51013597,133.52,133.49,0.66]
[1764985109452,11.17013597,133.52,133.49,0.66]
[1764985110559,18.92938983,133.53,133.49,8.15112277]
[1764985110742,0.66,133.52,133.49,8.15112277]
[1764985111355,0.66,133.52,133.5,0.66]
[1764985112053,0.2,133.53,133.5,3.68027927]
[1764985112264,0.86,133.53,133.5,0.66]
[1764985112436,0.86,133.53,133.51,0.66]
[1764985115159,0.66,133.52,133.49,8.88]
[1764985115361,0.66,133.52,133.48,0.66]
[1764985115362,3.68027927,133.52,133.48,0.66]
[1764985115867,0.66,133.51,133.48,0.66]
[1764985116749,0.66,133.51,133.48,8.15168017]
[1764985116946,0.2,133.53,133.49,3.68027927]
[1764985117356,0.86,133.53,133.5,0.66]
[1764985119476,0.2,133.53,133.5,8.15052055]
[1764985119775,0.92,133.53,133.51,0.69]
[1764985120838,0.2,133.53,133.51,0.69]
[1764985122344,0.92,133.53,133.5,8.18052055]
[1764985123255,0.2,133.53,133.5,7.49052055]
[1764985123463,0.92,133.53,133.51,0.69]
[1764985125284,0.92,133.53,133.51,8.18005912]
[1764985125448,0.2,133.53,133.51,8.18005912]
[1764985126268,3.94027927,133.53,133.5,7.49045454]
[1764985126457,3.94027927,133.53,133.5,8.18045454]
[1764985126851,0.72,133.52,133.5,8.18045454]
[1764985128484,3.22027927,133.53,133.5,8.18045454]
[1764985128694,3.94027927,133.53,133.5,8.18045454]
[1764985129061,0.92,133.53,133.51,0.69]
[1764985130069,0.2,133.53,133.51,8.17993448]
[1764985130848,0.92,133.53,133.51,8.17993448]
[1764985132172,0.2,133.53,133.5,7.4906367]
[1764985132376,0.72,133.52,133.49,8.93]
[1764985132751,0.92,133.53,133.5,0.69]
[1764985133055,0.2,133.53,133.5,0.69]
[1764985133979,0.2,133.53,133.51,7.49007564]
[1764985134355,0.2,133.53,133.51,8.20007564]
[1764985136261,0.9,133.53,133.51,0.71]
[1764985136496,0.2,133.53,133.51,0.71]
[1764985136973,0.9,133.53,133.5,8.20040818]
[1764985138887,0.9,133.53,133.51,0.71]
[1764985139069,0.2,133.53,133.51,0.71]
[1764985139406,0.9,133.53,133.51,0.71]
[1764985139569,0.2,133.53,133.51,0.71]
[1764985140495,0.9,133.53,133.51,0.71]
[1764985140989,0.9,133.53,133.5,7.49040818]
[1764985140990,0.9,133.53,133.5,8.20040818]
[1764985141192,0.9,133.53,133.49,31.68159282]
[1764985141193,0.7,133.52,133.49,8.24]
[1764985141392,5.41359822,133.52,133.47,7.49213765]
[1764985141593,4.71359822,133.51,133.47,15.71213765]
[1764985141897,5.41359822,133.51,133.47,16.42213765]
[1764985142096,0.7,133.5,133.47,16.42213765]
[1764985143215,8.19087482,133.5,133.47,8.22]
[1764985143412,12.90447304,133.5,133.46,12.91646277]
[1764985143584,0.7,133.49,133.46,8.20286455]
[1764985148902,8.19135619,133.49,133.45,20.49897306]
[1764985149095,8.19135619,133.49,133.45,21.17897306]
[1764985149294,0.7,133.48,133.45,21.17897306]
[1764985150204,0.7,133.48,133.45,12.95897306]
[1764985150509,8.19135619,133.49,133.46,0.68]
[1764985152282,0.7,133.49,133.46,8.17287535]
[1764985157886,12.9049705,133.49,133.45,20.49899986]
[1764985158086,4.71359822,133.48,133.45,0.072]
[1764985158312,5.41359822,133.48,133.45,0.072]
[1764985158491,0.7,133.47,133.45,0.072]
[1764985165022,0.7,133.47,133.45,0.752]
[1764985166120,0.7,133.47,133.45,0.072]
[1764985166316,0.7,133.47,133.45,0.752]
[1764985166821,0.7,133.47,133.45,0.072]
[1764985178535,0.7,133.48,133.45,0.752]
[1764985178703,12.20482522,133.49,133.45,0.072]
[1764985178907,5.37359822,133.48,133.45,0.072]
[1764985179311,0.66,133.47,133.45,0.072]
[1764985185535,12.86602094,133.47,133.45,0.072]
[1764985185742,8.15242272,133.47,133.45,0.072]
[1764985186043,0.66,133.46,133.45,0.072]
[1764985186337,4.71359822,133.47,133.45,0.072]
[1764985186520,0.66,133.47,133.45,0.072]
[1764985189545,0.66,133.47,133.45,0.782]
[1764985189836,0.66,133.47,133.45,0.072]
[1764985190735,7.49140241,133.49,133.46,0.71]
[1764985190944,8.17140241,133.49,133.46,0.71]
[1764985192431,0.68,133.48,133.46,0.71]
[1764985193648,7.49140241,133.49,133.46,0.71]
[1764985193841,12.88500063,133.49,133.46,0.71]
[1764985198258,0.68,133.49,133.46,0.71]
[1764985200140,11.19004033,133.49,133.46,0.71]
[1764985200336,11.19004033,133.49,133.45,15.78541013]
[1764985200537,0.68,133.48,133.45,8.292]
[1764985200749,3.01878623,133.46,133.45,0.072]
[1764985201136,0.68,133.46,133.45,0.072]
[1764985201538,3.69878623,133.46,133.45,0.072]
[1764985202080,8.17288176,133.46,133.45,0.072]
[1764985202859,11.19166799,133.46,133.45,0.072]